[Event "Titled Tuesday Blitz February 15 Late 2022"]
[White "Stankovic, Ivan G"]
[Black "Medeiros Jr, Francisco De Assis"]
[WhiteFideId "902837"]
[BlackFideId "2114267"]
[WhiteElo "2195"]
[BlackElo "1998"]
[Result "1/2-1/2"]
[Round "10"]
[TimeControl "180+1"]
[Date "2022.02.16"]
[WhiteClock "0:00:19"]
[BlackClock "0:00:12"]

1. e4 {[%clk 0:02:58]}  c6 {[%clk 0:02:59]} 2. d3 {[%clk 0:02:57]}  d5 {[%clk 0:03:00]} 3. Nd2 {[%clk 0:02:57]}  g6 {[%clk 0:03:00]} 4. h3 {[%clk 0:02:55]}  Bg7 {[%clk 0:02:58]} 5. Ngf3 {[%clk 0:02:54]}  e5 {[%clk 0:02:55]} 6. g3 {[%clk 0:02:50]}  h6 {[%clk 0:02:49]} 7. Bg2 {[%clk 0:02:50]}  Be6 {[%clk 0:02:50]} 8. O-O {[%clk 0:02:50]}  Nd7 {[%clk 0:02:50]} 9. Re1 {[%clk 0:02:43]}  Ne7 {[%clk 0:02:47]} 10. c3 {[%clk 0:02:32]}  O-O {[%clk 0:02:44]} 11. d4 {[%clk 0:02:32]}  exd4 {[%clk 0:02:42]} 12. Nxd4 {[%clk 0:02:29]}  Nc5 {[%clk 0:02:26]} 13. Nxe6 {[%clk 0:02:23]}  Nxe6 {[%clk 0:02:26]} 14. exd5 {[%clk 0:02:16]}  Nxd5 {[%clk 0:02:27]} 15. Nc4 {[%clk 0:02:09]}  Nb6 {[%clk 0:02:22]} 16. Nxb6 {[%clk 0:02:06]}  Qxb6 {[%clk 0:02:11]} 17. Qc2 {[%clk 0:02:06]}  Rfd8 {[%clk 0:02:04]} 18. Be3 {[%clk 0:02:04]}  Qc7 {[%clk 0:01:57]} 19. Rad1 {[%clk 0:02:01]}  Bf8 {[%clk 0:01:42]} 20. b4 {[%clk 0:01:44]}  a5 {[%clk 0:01:37]} 21. Rxd8 {[%clk 0:01:40]}  Rxd8 {[%clk 0:01:35]} 22. a3 {[%clk 0:01:35]}  axb4 {[%clk 0:01:33]} 23. axb4 {[%clk 0:01:32]}  Qd6 {[%clk 0:01:28]} 24. Be4 {[%clk 0:01:18]}  Bg7 {[%clk 0:01:17]} 25. Bb6 {[%clk 0:01:15]}  Rd7 {[%clk 0:01:13]} 26. Kg2 {[%clk 0:01:07]}  Qd2 {[%clk 0:01:02]} 27. Re2 {[%clk 0:01:01]}  Qxc3 {[%clk 0:00:54]} 28. Bxg6 {[%clk 0:00:59]}  Qxb4 {[%clk 0:00:25]} 29. Ba7 {[%clk 0:00:53]}  Qc3 {[%clk 0:00:14]} 30. Qf5 {[%clk 0:00:52]}  Qf6 {[%clk 0:00:14]} 31. Qxf6 {[%clk 0:00:49]}  Bxf6 {[%clk 0:00:14]} 32. Bf5 {[%clk 0:00:48]}  Kg7 {[%clk 0:00:13]} 33. Be3 {[%clk 0:00:44]}  Nd4 {[%clk 0:00:13]} 34. Rd2 {[%clk 0:00:38]}  Rd8 {[%clk 0:00:13]} 35. Be4 {[%clk 0:00:31]}  b5 {[%clk 0:00:13]} 36. Bxd4 {[%clk 0:00:24]}  Rxd4 {[%clk 0:00:13]} 37. Rxd4 {[%clk 0:00:24]}  Bxd4 {[%clk 0:00:14]} 38. Bxc6 {[%clk 0:00:24]}  b4 {[%clk 0:00:15]} 39. Bd5 {[%clk 0:00:25]}  f6 {[%clk 0:00:14]} 40. f4 {[%clk 0:00:25]}  Bc3 {[%clk 0:00:15]} 41. Kf3 {[%clk 0:00:25]}  Kg6 {[%clk 0:00:14]} 42. Ke4 {[%clk 0:00:20]}  Be1 {[%clk 0:00:13]} 43. g4 {[%clk 0:00:20]}  Bc3 {[%clk 0:00:13]} 44. Be6 {[%clk 0:00:20]}  Kg7 {[%clk 0:00:13]} 45. Kf5 {[%clk 0:00:20]}  Bb2 {[%clk 0:00:12]} 46. Bb3 {[%clk 0:00:20]}  Bc3 {[%clk 0:00:12]} 47. h4 {[%clk 0:00:21]}  Bb2 {[%clk 0:00:12]} 48. h5 {[%clk 0:00:21]}  Bc3 {[%clk 0:00:12]} 49. Ke6 {[%clk 0:00:22]}  Bb2 {[%clk 0:00:12]} 50. f5 {[%clk 0:00:22]}  Bc3 {[%clk 0:00:12]} 51. Kd5 {[%clk 0:00:19]} 1/2-1/2


[Site "https://www.chess.com"]

[Event "Titled Tuesday Blitz February 15 Late 2022"]
[White "Tanenbaum, Zachary"]
[Black "Zhurbinsky, David"]
[WhiteFideId "2060850"]
[BlackFideId "2072904"]
[WhiteElo "2168"]
[BlackElo "2536"]
[Result "1-0"]
[Round "10"]
[TimeControl "180+1"]
[Date "2022.02.15"]
[WhiteClock "0:00:46"]
[BlackClock "0:00:23"]

1. e4 {[%clk 0:03:00]}  e5 {[%clk 0:02:59]} 2. Nf3 {[%clk 0:03:00]}  Nc6 {[%clk 0:02:59]} 3. Bc4 {[%clk 0:03:01]}  Bc5 {[%clk 0:02:59]} 4. c3 {[%clk 0:03:01]}  Nf6 {[%clk 0:02:59]} 5. d3 {[%clk 0:03:02]}  O-O {[%clk 0:02:59]} 6. Nbd2 {[%clk 0:03:02]}  d6 {[%clk 0:02:58]} 7. a4 {[%clk 0:03:01]}  a6 {[%clk 0:02:57]} 8. Nf1 {[%clk 0:03:01]}  h6 {[%clk 0:02:53]} 9. Ng3 {[%clk 0:03:01]}  d5 {[%clk 0:02:47]} 10. exd5 {[%clk 0:02:59]}  Nxd5 {[%clk 0:02:48]} 11. O-O {[%clk 0:02:58]}  Be6 {[%clk 0:02:32]} 12. Re1 {[%clk 0:02:55]}  Nf4 {[%clk 0:02:20]} 13. Bxe6 {[%clk 0:02:49]}  fxe6 {[%clk 0:02:19]} 14. Bxf4 {[%clk 0:02:41]}  exf4 {[%clk 0:02:14]} 15. Ne4 {[%clk 0:02:40]}  Bb6 {[%clk 0:02:11]} 16. Qe2 {[%clk 0:02:33]}  e5 {[%clk 0:02:06]} 17. Ned2 {[%clk 0:02:33]}  Re8 {[%clk 0:02:04]} 18. Nc4 {[%clk 0:02:25]}  Qd5 {[%clk 0:01:48]} 19. Ncxe5 {[%clk 0:02:10]}  Nxe5 {[%clk 0:01:42]} 20. Nxe5 {[%clk 0:02:11]}  c5 {[%clk 0:01:38]} 21. Qe4 {[%clk 0:02:06]}  Qd6 {[%clk 0:01:19]} 22. Qxf4 {[%clk 0:01:50]}  Rf8 {[%clk 0:01:03]} 23. Qc4+ {[%clk 0:01:46]}  Kh7 {[%clk 0:01:02]} 24. Qe4+ {[%clk 0:01:34]}  Kg8 {[%clk 0:01:01]} 25. Nc4 {[%clk 0:01:33]}  Qf6 {[%clk 0:00:58]} 26. Qe6+ {[%clk 0:01:04]}  Qxe6 {[%clk 0:00:57]} 27. Rxe6 {[%clk 0:01:05]}  Bc7 {[%clk 0:00:58]} 28. Re7 {[%clk 0:01:01]}  Rac8 {[%clk 0:00:57]} 29. a5 {[%clk 0:00:56]}  Rf6 {[%clk 0:00:53]} 30. Rae1 {[%clk 0:00:56]}  Kh7 {[%clk 0:00:52]} 31. Rd7 {[%clk 0:00:53]}  Rg6 {[%clk 0:00:34]} 32. Ree7 {[%clk 0:00:51]}  Bd8 {[%clk 0:00:34]} 33. Re8 {[%clk 0:00:48]}  Bg5 {[%clk 0:00:25]} 34. Rxc8 {[%clk 0:00:47]}  Re6 {[%clk 0:00:26]} 35. g3 {[%clk 0:00:46]}  Re1+ {[%clk 0:00:22]} 36. Kg2 {[%clk 0:00:46]}  Re8 {[%clk 0:00:23]} 37. Rxe8 {[%clk 0:00:46]} 1-0


[Site "https://www.chess.com"]

[Event "Titled Tuesday Blitz February 15 Late 2022"]
[White "Tasev, Dejan"]
[Black "Petrovic, Aleksa"]
[WhiteFideId "936618"]
[BlackFideId "967629"]
[WhiteElo "2632"]
[BlackElo "2472"]
[Result "1/2-1/2"]
[Round "10"]
[TimeControl "180+1"]
[Date "2022.02.16"]
[WhiteClock "0:00:11"]
[BlackClock "0:00:03"]

1. e4 {[%clk 0:03:00]}  c5 {[%clk 0:02:58]} 2. Nf3 {[%clk 0:02:59]}  Nc6 {[%clk 0:02:58]} 3. Nc3 {[%clk 0:02:59]}  Nf6 {[%clk 0:02:56]} 4. d4 {[%clk 0:02:59]}  cxd4 {[%clk 0:02:57]} 5. Nxd4 {[%clk 0:03:00]}  e5 {[%clk 0:02:57]} 6. Ndb5 {[%clk 0:03:00]}  h6 {[%clk 0:02:57]} 7. a4 {[%clk 0:02:47]}  d6 {[%clk 0:02:55]} 8. Na3 {[%clk 0:02:46]}  a6 {[%clk 0:02:52]} 9. Nc4 {[%clk 0:02:46]}  Nxe4 {[%clk 0:02:24]} 10. Nxe4 {[%clk 0:02:42]}  d5 {[%clk 0:02:24]} 11. Ne3 {[%clk 0:02:18]}  dxe4 {[%clk 0:02:23]} 12. Qxd8+ {[%clk 0:02:18]}  Kxd8 {[%clk 0:02:19]} 13. Bc4 {[%clk 0:02:16]}  f5 {[%clk 0:02:17]} 14. Bd2 {[%clk 0:02:09]}  f4 {[%clk 0:02:12]} 15. Nd5 {[%clk 0:02:03]}  Bc5 {[%clk 0:01:53]} 16. Bc3 {[%clk 0:01:55]}  Bd4 {[%clk 0:01:42]} 17. O-O-O {[%clk 0:01:51]}  Bg4 {[%clk 0:01:15]} 18. Rd2 {[%clk 0:01:36]}  b5 {[%clk 0:01:14]} 19. Ba2 {[%clk 0:01:22]}  bxa4 {[%clk 0:00:41]} 20. Nxf4 {[%clk 0:01:11]}  exf4 {[%clk 0:00:38]} 21. Bxd4 {[%clk 0:01:11]}  Kc7 {[%clk 0:00:38]} 22. Bxg7 {[%clk 0:01:03]}  Rh7 {[%clk 0:00:34]} 23. Bc3 {[%clk 0:01:01]}  e3 {[%clk 0:00:32]} 24. fxe3 {[%clk 0:00:57]}  fxe3 {[%clk 0:00:33]} 25. Rd3 {[%clk 0:00:57]}  e2 {[%clk 0:00:31]} 26. Re1 {[%clk 0:00:56]}  Re8 {[%clk 0:00:21]} 27. h3 {[%clk 0:00:56]}  Bf5 {[%clk 0:00:19]} 28. Rf3 {[%clk 0:00:50]}  Bg6 {[%clk 0:00:16]} 29. Rf2 {[%clk 0:00:46]}  Rhe7 {[%clk 0:00:16]} 30. Bc4 {[%clk 0:00:44]}  Bh5 {[%clk 0:00:12]} 31. g4 {[%clk 0:00:43]}  Bg6 {[%clk 0:00:12]} 32. Rfxe2 {[%clk 0:00:43]}  Rxe2 {[%clk 0:00:12]} 33. Rxe2 {[%clk 0:00:43]}  Rf8 {[%clk 0:00:10]} 34. Bd3 {[%clk 0:00:29]}  Bxd3 {[%clk 0:00:09]} 35. cxd3 {[%clk 0:00:29]}  Rf3 {[%clk 0:00:09]} 36. Rh2 {[%clk 0:00:22]}  Rxd3 {[%clk 0:00:09]} 37. h4 {[%clk 0:00:22]}  a3 {[%clk 0:00:08]} 38. Kc2 {[%clk 0:00:22]}  a2 {[%clk 0:00:07]} 39. Rh1 {[%clk 0:00:22]}  Rh3 {[%clk 0:00:07]} 40. Ra1 {[%clk 0:00:22]}  Rxh4 {[%clk 0:00:07]} 41. Rxa2 {[%clk 0:00:22]}  Kb7 {[%clk 0:00:04]} 42. Ra4 {[%clk 0:00:21]}  h5 {[%clk 0:00:04]} 43. Rf4 {[%clk 0:00:17]}  Rxg4 {[%clk 0:00:04]} 44. Rf7+ {[%clk 0:00:17]}  Kb6 {[%clk 0:00:05]} 45. Rh7 {[%clk 0:00:18]}  h4 {[%clk 0:00:05]} 46. Kb3 {[%clk 0:00:18]}  a5 {[%clk 0:00:06]} 47. Be1 {[%clk 0:00:18]}  a4+ {[%clk 0:00:06]} 48. Ka2 {[%clk 0:00:18]}  Nb4+ {[%clk 0:00:06]} 49. Bxb4 {[%clk 0:00:15]}  Rxb4 {[%clk 0:00:07]} 50. Rh5 {[%clk 0:00:16]}  Rg4 {[%clk 0:00:06]} 51. Ka3 {[%clk 0:00:16]}  Kc6 {[%clk 0:00:06]} 52. b3 {[%clk 0:00:14]}  axb3 {[%clk 0:00:05]} 53. Kxb3 {[%clk 0:00:15]}  Kd6 {[%clk 0:00:06]} 54. Kc3 {[%clk 0:00:16]}  Ke6 {[%clk 0:00:06]} 55. Kd3 {[%clk 0:00:16]}  Kf6 {[%clk 0:00:07]} 56. Ke3 {[%clk 0:00:17]}  Kg6 {[%clk 0:00:07]} 57. Rh8 {[%clk 0:00:17]}  Kg5 {[%clk 0:00:07]} 58. Kf3 {[%clk 0:00:17]}  Rg3+ {[%clk 0:00:05]} 59. Kf2 {[%clk 0:00:17]}  Kg4 {[%clk 0:00:05]} 60. Rg8+ {[%clk 0:00:15]}  Kh3 {[%clk 0:00:05]} 61. Rh8 {[%clk 0:00:10]}  Rg4 {[%clk 0:00:05]} 62. Rc8 {[%clk 0:00:09]}  Kh2 {[%clk 0:00:05]} 63. Rc1 {[%clk 0:00:08]}  h3 {[%clk 0:00:05]} 64. Kf3 {[%clk 0:00:08]}  Rg3+ {[%clk 0:00:04]} 65. Kf2 {[%clk 0:00:09]}  Rg2+ {[%clk 0:00:05]} 66. Kf3 {[%clk 0:00:09]}  Rg1 {[%clk 0:00:04]} 67. Rc2+ {[%clk 0:00:10]}  Kh1 {[%clk 0:00:05]} 68. Rc7 {[%clk 0:00:09]}  h2 {[%clk 0:00:05]} 69. Rh7 {[%clk 0:00:09]}  Rf1+ {[%clk 0:00:04]} 70. Ke2 {[%clk 0:00:10]}  Rf5 {[%clk 0:00:03]} 71. Rg7 {[%clk 0:00:10]}  Rf4 {[%clk 0:00:03]} 72. Ke3 {[%clk 0:00:10]}  Rh4 {[%clk 0:00:03]} 73. Kf2 {[%clk 0:00:10]}  Ra4 {[%clk 0:00:02]} 74. Ke2 {[%clk 0:00:10]}  Ra2+ {[%clk 0:00:03]} 75. Kf1 {[%clk 0:00:10]}  Ra1+ {[%clk 0:00:03]} 76. Kf2 {[%clk 0:00:11]}  Rg1 {[%clk 0:00:03]} 77. Rh7 {[%clk 0:00:11]}  Rg2+ {[%clk 0:00:03]} 78. Kf1 {[%clk 0:00:11]}  Ra2 {[%clk 0:00:03]} 79. Rg7 {[%clk 0:00:11]}  Ra1+ {[%clk 0:00:03]} 80. Kf2 {[%clk 0:00:11]}  Rd1 {[%clk 0:00:03]} 81. Rg8 {[%clk 0:00:11]}  Rg1 {[%clk 0:00:02]} 82. Rh8 {[%clk 0:00:11]}  Rd1 {[%clk 0:00:02]} 83. Rg8 {[%clk 0:00:11]}  Rd2+ {[%clk 0:00:02]} 84. Kf1 {[%clk 0:00:11]}  Ra2 {[%clk 0:00:03]} 85. Rg7 {[%clk 0:00:11]} 1/2-1/2


[Site "https://www.chess.com"]

[Event "Titled Tuesday Blitz February 15 Late 2022"]
[White "Timofeev, Artyom"]
[Black "Kosteniuk, Alexandra"]
[WhiteFideId "4140419"]
[BlackFideId "4128125"]
[WhiteElo "2583"]
[BlackElo "2469"]
[Result "1-0"]
[Round "10"]
[TimeControl "180+1"]
[Date "2022.02.15"]
[WhiteClock "0:00:10"]
[BlackClock "0:00:05"]

1. d4 {[%clk 0:03:00]}  Nf6 {[%clk 0:02:59]} 2. Nf3 {[%clk 0:03:00]}  e6 {[%clk 0:02:59]} 3. Bg5 {[%clk 0:03:00]}  d5 {[%clk 0:02:51]} 4. e3 {[%clk 0:02:59]}  Be7 {[%clk 0:02:50]} 5. c4 {[%clk 0:02:59]}  O-O {[%clk 0:02:45]} 6. Nc3 {[%clk 0:02:59]}  h6 {[%clk 0:02:44]} 7. Bh4 {[%clk 0:02:59]}  b6 {[%clk 0:02:43]} 8. cxd5 {[%clk 0:02:47]}  exd5 {[%clk 0:02:38]} 9. Bd3 {[%clk 0:02:42]}  Be6 {[%clk 0:02:35]} 10. O-O {[%clk 0:02:42]}  c5 {[%clk 0:02:35]} 11. dxc5 {[%clk 0:02:37]}  bxc5 {[%clk 0:02:36]} 12. Rc1 {[%clk 0:02:36]}  Nbd7 {[%clk 0:02:33]} 13. b3 {[%clk 0:02:35]}  Rc8 {[%clk 0:02:23]} 14. h3 {[%clk 0:02:33]}  Qb6 {[%clk 0:02:20]} 15. Qe2 {[%clk 0:02:28]}  Rfd8 {[%clk 0:02:18]} 16. Rfd1 {[%clk 0:02:27]}  c4 {[%clk 0:02:08]} 17. bxc4 {[%clk 0:02:00]}  dxc4 {[%clk 0:02:09]} 18. Bc2 {[%clk 0:02:00]}  Ba3 {[%clk 0:01:58]} 19. Rb1 {[%clk 0:01:58]}  Qa5 {[%clk 0:01:58]} 20. Nb5 {[%clk 0:01:52]}  Be7 {[%clk 0:01:50]} 21. Nbd4 {[%clk 0:01:48]}  Nf8 {[%clk 0:01:28]} 22. Rb7 {[%clk 0:01:26]}  Rd7 {[%clk 0:01:20]} 23. Rb5 {[%clk 0:01:22]}  Qa6 {[%clk 0:01:15]} 24. a4 {[%clk 0:01:19]}  Rcd8 {[%clk 0:00:46]} 25. Ne5 {[%clk 0:01:08]}  Rc7 {[%clk 0:00:41]} 26. Nxe6 {[%clk 0:00:58]}  Rxd1+ {[%clk 0:00:39]} 27. Qxd1 {[%clk 0:00:56]}  Qxe6 {[%clk 0:00:39]} 28. Qd4 {[%clk 0:00:47]}  Rc8 {[%clk 0:00:36]} 29. Qxa7 {[%clk 0:00:41]}  Bd6 {[%clk 0:00:36]} 30. Nf3 {[%clk 0:00:39]}  c3 {[%clk 0:00:37]} 31. Nd4 {[%clk 0:00:31]}  Qa2 {[%clk 0:00:37]} 32. Bxf6 {[%clk 0:00:29]}  gxf6 {[%clk 0:00:36]} 33. g3 {[%clk 0:00:30]}  Be5 {[%clk 0:00:34]} 34. Bb3 {[%clk 0:00:20]}  Qa1+ {[%clk 0:00:31]} 35. Kg2 {[%clk 0:00:21]}  Rc7 {[%clk 0:00:30]} 36. Qa8 {[%clk 0:00:17]}  Bxd4 {[%clk 0:00:19]} 37. exd4 {[%clk 0:00:17]}  c2 {[%clk 0:00:20]} 38. Bxc2 {[%clk 0:00:17]}  Rxc2 {[%clk 0:00:19]} 39. Rb8 {[%clk 0:00:17]}  Qa3 {[%clk 0:00:20]} 40. Qe4 {[%clk 0:00:18]}  Qd6 {[%clk 0:00:16]} 41. Rxf8+ {[%clk 0:00:15]}  Kxf8 {[%clk 0:00:16]} 42. Qxc2 {[%clk 0:00:16]}  Qxd4 {[%clk 0:00:17]} 43. Qc6 {[%clk 0:00:15]}  Qe5 {[%clk 0:00:15]} 44. Qa8+ {[%clk 0:00:09]}  Kg7 {[%clk 0:00:15]} 45. a5 {[%clk 0:00:09]}  f5 {[%clk 0:00:08]} 46. a6 {[%clk 0:00:10]}  f4 {[%clk 0:00:08]} 47. g4 {[%clk 0:00:10]}  Qa5 {[%clk 0:00:06]} 48. Qb7 {[%clk 0:00:10]}  f3+ {[%clk 0:00:06]} 49. Kxf3 {[%clk 0:00:09]}  Qa3+ {[%clk 0:00:05]} 50. Kg2 {[%clk 0:00:10]} 1-0


[Site "https://www.chess.com"]

[Event "Titled Tuesday Blitz February 15 Late 2022"]
[White "Titichoca Daza, Daniel"]
[Black "Goryachkina, Aleksandra"]
[WhiteFideId "3309550"]
[BlackFideId "4147103"]
[WhiteElo "1968"]
[BlackElo "2426"]
[Result "0-1"]
[Round "10"]
[TimeControl "180+1"]
[Date "2022.02.15"]
[WhiteClock "0:00:01"]
[BlackClock "0:00:59"]

1. e4 {[%clk 0:03:00]}  c5 {[%clk 0:02:59]} 2. Nf3 {[%clk 0:03:00]}  e6 {[%clk 0:03:00]} 3. d4 {[%clk 0:02:51]}  cxd4 {[%clk 0:02:59]} 4. Nxd4 {[%clk 0:02:52]}  Nf6 {[%clk 0:02:59]} 5. Nc3 {[%clk 0:02:50]}  Nc6 {[%clk 0:02:59]} 6. Ndb5 {[%clk 0:02:18]}  d6 {[%clk 0:02:59]} 7. Bf4 {[%clk 0:02:11]}  e5 {[%clk 0:02:59]} 8. Bg5 {[%clk 0:02:12]}  a6 {[%clk 0:02:59]} 9. Na3 {[%clk 0:02:11]}  b5 {[%clk 0:02:59]} 10. Nd5 {[%clk 0:02:09]}  Be7 {[%clk 0:02:59]} 11. Bxf6 {[%clk 0:02:09]}  Bxf6 {[%clk 0:02:59]} 12. c3 {[%clk 0:01:53]}  O-O {[%clk 0:02:52]} 13. Nc2 {[%clk 0:01:37]}  Rb8 {[%clk 0:02:51]} 14. Nce3 {[%clk 0:01:31]}  Bg5 {[%clk 0:02:49]} 15. Be2 {[%clk 0:01:20]}  Ne7 {[%clk 0:02:40]} 16. O-O {[%clk 0:01:17]}  Bxe3 {[%clk 0:02:34]} 17. Nxe3 {[%clk 0:01:17]}  Bb7 {[%clk 0:02:34]} 18. Bf3 {[%clk 0:01:12]}  Qb6 {[%clk 0:02:22]} 19. a4 {[%clk 0:01:02]}  Rbd8 {[%clk 0:02:14]} 20. Qb3 {[%clk 0:00:57]}  Kh8 {[%clk 0:02:08]} 21. axb5 {[%clk 0:00:52]}  axb5 {[%clk 0:02:09]} 22. c4 {[%clk 0:00:37]}  f5 {[%clk 0:02:03]} 23. Qxb5 {[%clk 0:00:27]}  Qxb5 {[%clk 0:02:02]} 24. cxb5 {[%clk 0:00:28]}  fxe4 {[%clk 0:02:01]} 25. Bd1 {[%clk 0:00:29]}  d5 {[%clk 0:01:57]} 26. Ra7 {[%clk 0:00:27]}  Rb8 {[%clk 0:01:56]} 27. Bb3 {[%clk 0:00:26]}  Nc8 {[%clk 0:01:53]} 28. Ra5 {[%clk 0:00:23]}  Nb6 {[%clk 0:01:52]} 29. Ra7 {[%clk 0:00:18]}  d4 {[%clk 0:01:34]} 30. Ng4 {[%clk 0:00:17]}  Rfe8 {[%clk 0:01:26]} 31. Rc1 {[%clk 0:00:12]}  Nc8 {[%clk 0:01:14]} 32. Rxb7 {[%clk 0:00:06]}  Rxb7 {[%clk 0:01:11]} 33. Nxe5 {[%clk 0:00:06]}  h6 {[%clk 0:01:02]} 34. Rc5 {[%clk 0:00:01]}  Nd6 {[%clk 0:00:59]} 0-1


[Site "https://www.chess.com"]

[Event "Titled Tuesday Blitz February 15 Late 2022"]
[White "Vusatiuk, Vladimir"]
[Black "Sarana, Alexey"]
[WhiteFideId "14118610"]
[BlackFideId "24133795"]
[WhiteElo "2157"]
[BlackElo "2665"]
[Result "1-0"]
[Round "10"]
[TimeControl "180+1"]
[Date "2022.02.15"]
[WhiteClock "0:00:15"]
[BlackClock "0:01:31"]

1. d4 {[%clk 0:03:00]}  Nf6 {[%clk 0:03:00]} 2. c4 {[%clk 0:02:59]}  e6 {[%clk 0:03:00]} 3. Nc3 {[%clk 0:02:59]}  d5 {[%clk 0:02:59]} 4. cxd5 {[%clk 0:02:59]}  Nxd5 {[%clk 0:02:58]} 5. e4 {[%clk 0:02:59]}  Nxc3 {[%clk 0:02:58]} 6. bxc3 {[%clk 0:03:00]}  c5 {[%clk 0:02:59]} 7. Nf3 {[%clk 0:03:01]}  cxd4 {[%clk 0:02:59]} 8. cxd4 {[%clk 0:03:02]}  Bb4+ {[%clk 0:02:59]} 9. Bd2 {[%clk 0:03:02]}  Bxd2+ {[%clk 0:03:00]} 10. Qxd2 {[%clk 0:03:03]}  O-O {[%clk 0:03:01]} 11. Bc4 {[%clk 0:03:03]}  b6 {[%clk 0:03:01]} 12. O-O {[%clk 0:03:01]}  Bb7 {[%clk 0:02:59]} 13. Rfe1 {[%clk 0:03:02]}  Nd7 {[%clk 0:02:59]} 14. Rad1 {[%clk 0:03:02]}  Rc8 {[%clk 0:03:00]} 15. Bb3 {[%clk 0:03:02]}  Re8 {[%clk 0:02:59]} 16. h4 {[%clk 0:02:56]}  Nf6 {[%clk 0:02:57]} 17. Qf4 {[%clk 0:02:53]}  Qc7 {[%clk 0:02:56]} 18. Ne5 {[%clk 0:02:42]}  Re7 {[%clk 0:02:56]} 19. g4 {[%clk 0:02:15]}  Qd6 {[%clk 0:02:55]} 20. g5 {[%clk 0:01:47]}  Nd7 {[%clk 0:02:30]} 21. h5 {[%clk 0:01:31]}  f6 {[%clk 0:02:26]} 22. Ng6 {[%clk 0:01:25]}  Qxf4 {[%clk 0:02:14]} 23. Nxf4 {[%clk 0:01:26]}  Kh8 {[%clk 0:01:56]} 24. gxf6 {[%clk 0:01:20]}  Nxf6 {[%clk 0:01:56]} 25. Bxe6 {[%clk 0:01:13]}  Rf8 {[%clk 0:01:47]} 26. d5 {[%clk 0:01:11]}  Ne8 {[%clk 0:01:47]} 27. d6 {[%clk 0:00:58]}  Nxd6 {[%clk 0:01:47]} 28. Rxd6 {[%clk 0:00:58]}  g5 {[%clk 0:01:48]} 29. Nd5 {[%clk 0:00:52]}  Rg7 {[%clk 0:01:48]} 30. Rd7 {[%clk 0:00:43]}  Re8 {[%clk 0:01:49]} 31. Rxg7 {[%clk 0:00:43]}  Kxg7 {[%clk 0:01:49]} 32. Rc1 {[%clk 0:00:36]}  Kh6 {[%clk 0:01:46]} 33. Bf5 {[%clk 0:00:32]}  Bxd5 {[%clk 0:01:33]} 34. exd5 {[%clk 0:00:33]}  Re5 {[%clk 0:01:34]} 35. Be6 {[%clk 0:00:31]}  Kxh5 {[%clk 0:01:34]} 36. Rc7 {[%clk 0:00:31]}  Kg6 {[%clk 0:01:34]} 37. Rxa7 {[%clk 0:00:29]}  h5 {[%clk 0:01:34]} 38. Rb7 {[%clk 0:00:28]}  g4 {[%clk 0:01:34]} 39. Rxb6 {[%clk 0:00:28]}  Kg5 {[%clk 0:01:34]} 40. Kf1 {[%clk 0:00:22]}  h4 {[%clk 0:01:34]} 41. d6 {[%clk 0:00:21]}  h3 {[%clk 0:01:31]} 42. d7 {[%clk 0:00:16]}  h2 {[%clk 0:01:31]} 43. d8=Q+ {[%clk 0:00:16]}  Kf4 {[%clk 0:01:31]} 44. Qf6+ {[%clk 0:00:15]} 1-0


[Site "https://www.chess.com"]

[Event "Titled Tuesday Blitz February 15 Late 2022"]
[White "Wagner, Dennis"]
[Black "Iljin, Timofey"]
[WhiteFideId "24650684"]
[BlackFideId "14110180"]
[WhiteElo "2355"]
[BlackElo "2396"]
[Result "1-0"]
[Round "10"]
[TimeControl "180+1"]
[Date "2022.02.15"]
[WhiteClock "0:00:12"]
[BlackClock "0:00:01"]

1. c4 {[%clk 0:03:00]}  e6 {[%clk 0:02:59]} 2. d4 {[%clk 0:02:52]}  d5 {[%clk 0:03:00]} 3. Nf3 {[%clk 0:02:52]}  Nf6 {[%clk 0:03:00]} 4. e3 {[%clk 0:02:52]}  Bd6 {[%clk 0:02:59]} 5. b3 {[%clk 0:02:52]}  O-O {[%clk 0:02:59]} 6. Bb2 {[%clk 0:02:53]}  b6 {[%clk 0:02:59]} 7. Nc3 {[%clk 0:02:52]}  c5 {[%clk 0:02:59]} 8. cxd5 {[%clk 0:02:51]}  exd5 {[%clk 0:02:59]} 9. Be2 {[%clk 0:02:51]}  Nc6 {[%clk 0:02:51]} 10. Rc1 {[%clk 0:02:31]}  cxd4 {[%clk 0:02:39]} 11. Nxd4 {[%clk 0:02:30]}  Nxd4 {[%clk 0:02:39]} 12. Qxd4 {[%clk 0:02:30]}  Bb7 {[%clk 0:02:20]} 13. Bf3 {[%clk 0:02:25]}  Re8 {[%clk 0:02:15]} 14. Ne2 {[%clk 0:02:06]}  Qe7 {[%clk 0:01:57]} 15. O-O {[%clk 0:01:59]}  Rad8 {[%clk 0:01:55]} 16. Ng3 {[%clk 0:01:51]}  Bc8 {[%clk 0:01:42]} 17. Rfd1 {[%clk 0:01:41]}  Be6 {[%clk 0:01:41]} 18. Qh4 {[%clk 0:01:36]}  Ba3 {[%clk 0:01:36]} 19. Bxa3 {[%clk 0:00:43]}  Qxa3 {[%clk 0:01:35]} 20. Rc2 {[%clk 0:00:44]}  Rc8 {[%clk 0:01:24]} 21. Rcd2 {[%clk 0:00:44]}  h6 {[%clk 0:01:13]} 22. h3 {[%clk 0:00:44]}  Rc1 {[%clk 0:01:07]} 23. Qd4 {[%clk 0:00:41]}  Rxd1+ {[%clk 0:01:04]} 24. Bxd1 {[%clk 0:00:41]}  Rc8 {[%clk 0:01:04]} 25. Kh2 {[%clk 0:00:39]}  Qc5 {[%clk 0:01:00]} 26. Bf3 {[%clk 0:00:36]}  Qxd4 {[%clk 0:00:54]} 27. Rxd4 {[%clk 0:00:36]}  Rc2 {[%clk 0:00:54]} 28. Ra4 {[%clk 0:00:35]}  a5 {[%clk 0:00:53]} 29. Ne2 {[%clk 0:00:33]}  Bd7 {[%clk 0:00:42]} 30. Ra3 {[%clk 0:00:33]}  Kf8 {[%clk 0:00:36]} 31. Kg3 {[%clk 0:00:33]}  Ke7 {[%clk 0:00:31]} 32. Nd4 {[%clk 0:00:33]}  Rc3 {[%clk 0:00:27]} 33. Ne2 {[%clk 0:00:22]}  Rc2 {[%clk 0:00:27]} 34. b4 {[%clk 0:00:16]}  axb4 {[%clk 0:00:27]} 35. Rb3 {[%clk 0:00:17]}  Rc4 {[%clk 0:00:19]} 36. Nf4 {[%clk 0:00:17]}  Kd6 {[%clk 0:00:17]} 37. Nd3 {[%clk 0:00:18]}  Ne4+ {[%clk 0:00:13]} 38. Bxe4 {[%clk 0:00:18]}  dxe4 {[%clk 0:00:14]} 39. Nxb4 {[%clk 0:00:18]}  Kc5 {[%clk 0:00:10]} 40. Na6+ {[%clk 0:00:15]}  Kc6 {[%clk 0:00:04]} 41. Nb8+ {[%clk 0:00:15]}  Kc7 {[%clk 0:00:04]} 42. Nxd7 {[%clk 0:00:15]}  Kxd7 {[%clk 0:00:05]} 43. Rxb6 {[%clk 0:00:16]}  Rc2 {[%clk 0:00:05]} 44. a4 {[%clk 0:00:15]}  Ra2 {[%clk 0:00:05]} 45. Rb4 {[%clk 0:00:15]}  f5 {[%clk 0:00:05]} 46. h4 {[%clk 0:00:15]}  g5 {[%clk 0:00:04]} 47. h5 {[%clk 0:00:15]}  Ke7 {[%clk 0:00:01]} 48. Rb6 {[%clk 0:00:11]}  Kf7 {[%clk 0:00:01]} 49. Rxh6 {[%clk 0:00:12]}  Rxa4 {[%clk 0:00:01]} 50. Rg6 {[%clk 0:00:12]} 1-0


[Site "https://www.chess.com"]